bitfinex/quotes_ETHUSD_20240719
["timestamp","ask_amount","ask_price","bid_price","bid_amount"]
[1721377397142,2.95397,3385.3,3384.4,4.1652587]
[1721377397348,2.95397,3385.3,3384.5,5.95458]
[1721377397565,2.95397,3385.3,3384.6,0.55]
[1721377397865,2.95378,3385.5,3384.7,4.02145387]
[1721377398053,2.95378,3385.5,3384.8,3.55]
[1721377399564,2.95378,3385.5,3384.8,6.50437]
[1721377399769,2.95386,3385.4,3384.8,3.55]
[1721377399983,2.95402,3385.3,3384.8,3.55]
[1721377400179,2.95402,3385.3,3384.8,0.55]
[1721377400331,2.95402,3385.3,3384.7,0.55]
[1721377400667,2.95379,3385.5,3384.7,3.50446]
[1721377400871,2.95379,3385.5,3384.8,3.0]
[1721377401072,2.95383,3385.5,3384.9,1.500446]
[1721377401476,2.95327,3386.1,3384.9,1.500446]
[1721377401684,2.9531,3386.3,3385.2,2.95397]
[1721377401891,2.95297,3386.5,3385.6,2.95367]
[1721377402172,2.95297,3386.5,3385.7,0.60906602]
[1721377402535,2.95246,3387.0,3385.7,0.55]
[1721377402737,2.95264,3386.8,3385.7,0.55]
[1721377402972,2.95274,3386.7,3385.8,0.36090576]
[1721377403178,4.47192233,3387.0,3385.9,0.55]
[1721377403378,1.51946233,3387.0,3385.9,0.55]
[1721377403536,1.51946233,3387.0,3386.0,1.773]
[1721377403750,2.95282,3386.6,3386.1,0.81839058]
[1721377403993,2.95282,3386.6,3386.1,3.81839058]
[1721377404280,2.95273,3386.7,3386.1,3.81839058]
[1721377404684,5.25211,3387.3,3386.1,3.81839058]
[1721377404685,1.51946233,3387.3,3386.1,3.81839058]
[1721377404885,2.95285,3386.6,3386.1,3.81839058]
[1721377405088,2.95285,3386.6,3386.2,0.38183906]
[1721377405277,2.95285,3386.6,3386.3,0.55]
[1721377405455,2.95285,3386.6,3386.1,0.55]
[1721377405653,2.95285,3386.6,3385.8,0.36090576]
[1721377405654,2.95264,3386.8,3385.9,0.55]
[1721377405855,2.95278,3386.7,3385.9,3.55]
[1721377406206,2.95291,3386.5,3385.9,3.55]
[1721377406390,2.95291,3386.5,3386.0,0.68644958]
[1721377406596,2.2661,3386.6,3384.8,2.3678]
[1721377406781,2.95291,3386.5,3384.8,2.3678]
[1721377407120,3.78626831,3386.6,3384.8,2.3678]
[1721377407121,2.95359,3385.8,3384.9,2.95428]
[1721377407287,2.95359,3385.8,3385.0,1.773]
[1721377407288,2.9536,3385.7,3385.0,1.773]
[1721377407614,2.95368,3385.6,3385.1,1.020408]
[1721377407973,2.95348,3385.9,3385.1,5.793408]
[1721377408268,2.95316,3386.2,3385.4,1.773]
[1721377408486,2.95283,3386.6,3385.8,1.773]
[1721377408787,2.95304,3386.4,3385.7,3.0]
[1721377409000,2.95308,3386.3,3385.8,1.553927]
[1721377409321,2.95308,3386.3,3384.9,2.3126]
[1721377409322,2.95314,3386.3,3384.9,2.3126]
[1721377409524,2.95409,3385.2,3384.6,7.4]
[1721377409721,2.95409,3385.2,3384.5,1.773]
[1721377409891,2.95414,3385.1,3384.5,1.773]
[1721377410086,2.95409,3385.2,3384.6,2.477033]
[1721377410409,2.29,3385.5,3384.6,0.704033]
[1721377410607,2.95425,3385.0,3384.1,7.4]
[1721377410825,2.95425,3385.0,3384.2,1.773]
[1721377411119,2.954,3385.3,3384.2,1.773]
[1721377411120,2.95447,3384.7,3384.2,1.773]
[1721377411911,2.29,3385.5,3383.9,1.773]
[1721377412131,2.95451,3384.7,3383.4,7.4]
[1721377412298,2.95507,3384.1,3383.5,1.30774047]
[1721377412637,2.95508,3384.0,3383.5,1.30774047]
[1721377412983,2.95508,3384.0,3383.5,3.08074047]
[1721377413213,2.95517,3383.9,3383.5,3.08074047]
[1721377413412,2.95517,3383.9,3383.6,0.86112405]
[1721377413589,2.95517,3383.9,3383.5,1.773]
[1721377413787,2.95517,3383.9,3383.2,0.1469047]
[1721377413788,2.9552,3383.9,3383.2,0.1469047]
[1721377413989,2.3979,3384.5,3383.2,0.1469047]
[1721377413990,2.95563,3383.4,3383.2,0.1469047]
[1721377414693,2.95569,3383.3,3383.2,0.1469047]
[1721377414891,5.91138,3383.3,3383.2,0.1469047]
[1721377415295,11.26497,3383.3,3383.2,0.1469047]
[1721377417090,14.22066,3383.3,3383.2,0.1469047]
[1721377417302,14.22066,3383.3,3382.4,0.005]
[1721377417303,5.91278,3382.5,3382.4,0.005]
[1721377418135,2.95639,3382.5,3382.4,0.005]
[1721377419317,5.91278,3382.5,3382.4,0.005]
[1721377420224,2.95606,3382.9,3382.4,0.005]
[1721377420522,7.45,3383.8,3382.4,0.005]
[1721377420523,2.95553,3383.5,3382.4,0.005]
[1721377420740,2.95639,3382.5,3382.4,0.005]
[1721377421289,5.91278,3382.5,3382.4,0.005]
[1721377425807,8.86917,3382.5,3382.4,0.005]
[1721377426905,2.95614,3382.8,3382.4,0.005]
[1721377427797,5.34516,3383.0,3382.4,0.005]
[1721377428101,2.3892,3383.0,3382.4,0.005]
[1721377428296,2.95622,3382.7,3382.4,0.005]
[1721377428506,2.3892,3383.0,3382.4,0.005]
[1721377428707,0.43709978,3383.3,3382.4,0.005]
[1721377428907,2.3892,3383.5,3382.4,0.2437131]
[1721377429106,2.3892,3383.5,3382.5,0.55]
[1721377429651,2.3892,3383.5,3382.5,3.50638]
[1721377429831,2.3892,3384.0,3382.6,0.0591177]
[1721377430062,5.34386,3384.5,3383.0,2.95594]
[1721377430234,5.34386,3384.5,3383.1,3.845594]
[1721377430571,2.3892,3384.5,3383.1,3.845594]
[1721377430739,2.3892,3384.5,3383.4,2.95559]
[1721377430941,2.3892,3384.5,3383.5,3.50551]
[1721377431296,3.597,3385.0,3383.6,2.9554]
[1721377431458,2.95436,3384.9,3383.7,4.373391]
[1721377431763,6.55126,3385.0,3383.7,4.373391]
[1721377431972,3.597,3385.0,3383.7,3.55]
[1721377432132,2.9545,3384.7,3383.7,0.55]
[1721377432333,2.9545,3384.7,3383.5,0.55]
[1721377432558,6.55122,3385.0,3383.8,2.95523]
[1721377432727,6.55122,3385.0,3383.9,0.55]
[1721377432926,2.3892,3385.1,3384.0,2.95506]
[1721377433149,2.3892,3385.1,3384.1,3.50499]
[1721377433338,2.3892,3385.1,3383.6,7.4]
[1721377433552,2.95456,3384.6,3383.7,3.0]
[1721377434138,2.9543,3384.9,3383.7,3.0]
[1721377434656,5.34338,3385.1,3383.8,0.55]
[1721377434856,2.95411,3385.2,3384.2,2.95484]
[1721377435056,2.95403,3385.2,3384.3,0.55]
[1721377435261,2.95403,3385.2,3384.2,2.95484]
[1721377435575,2.95395,3385.3,3384.4,2.95466]
[1721377435732,2.95413,3385.1,3384.1,2.95497]
[1721377435932,2.95413,3385.1,3384.4,2.95473]
[1721377436484,2.95422,3385.0,3384.1,2.95497]
[1721377436637,2.95434,3384.9,3384.1,2.95497]
[1721377436836,2.95422,3385.0,3384.1,2.95497]
[1721377437887,2.95422,3385.0,3384.3,2.95481]
[1721377438187,2.95403,3385.2,3384.2,2.9549]
[1721377438388,2.9541,3385.2,3384.4,2.95472]
[1721377439184,2.95412,3385.1,3384.4,2.95472]
[1721377439395,2.95421,3385.0,3384.1,2.95498]
[1721377439592,2.95448,3384.7,3383.9,2.95515]
[1721377439766,2.95448,3384.7,3384.0,3.55]
[1721377440149,2.95448,3384.7,3384.1,2.95499]
[1721377440496,2.4194,3384.8,3384.0,0.55]
[1721377440698,2.4194,3384.8,3383.7,2.95534]
[1721377440699,2.95483,3384.3,3383.6,7.4]
[1721377440995,2.95483,3384.3,3383.4,2.9556]
[1721377441150,2.95516,3384.0,3383.1,7.695594]
[1721377441352,2.95474,3384.4,3383.1,7.695594]
[1721377441697,2.95474,3384.4,3383.4,2.9556]
[1721377441868,2.9541,3385.2,3383.4,2.9556]
[1721377441869,2.4828,3385.3,3383.6,2.4304]
[1721377442206,3.427,3385.4,3384.0,2.955]
[1721377442207,2.95444,3384.8,3384.0,2.955]
[1721377442499,3.427,3385.4,3384.1,3.0]
[1721377442500,2.95456,3384.6,3384.1,3.0]
[1721377442646,2.2885,3384.9,3383.6,7.4]
[1721377442850,2.95483,3384.3,3383.6,7.4]
[1721377443462,2.95518,3383.9,3383.6,7.4]
[1721377443656,2.95518,3383.9,3383.2,5.95578]
[1721377443889,2.95558,3383.5,3383.0,7.4]
[1721377444201,2.9557,3383.3,3383.0,7.4]
[1721377444761,2.95526,3383.8,3383.0,7.4]
[1721377444962,2.95526,3383.8,3383.0,8.14]
[1721377445176,2.95526,3383.8,3383.1,2.95586]
[1721377445396,2.95535,3383.7,3383.1,2.95586]
[1721377445597,2.9552,3383.9,3383.1,2.95586]
[1721377445801,2.9551,3384.0,3383.2,3.50571]
[1721377446103,3.6,3385.1,3383.2,3.50571]
[1721377446104,2.95456,3384.6,3383.4,1.773]
[1721377446328,2.95456,3384.6,3383.5,0.55]
[1721377446696,2.95464,3384.5,3383.9,2.95509]
[1721377446998,2.95456,3384.6,3383.9,2.95514]
[1721377447201,2.3555,3385.0,3383.7,2.95526]
[1721377447404,2.3555,3385.0,3383.8,0.55]
[1721377447562,2.95476,3384.4,3383.8,0.55]
[1721377447762,2.95493,3384.2,3383.5,2.9555]
[1721377448006,2.95493,3384.2,3383.6,3.55]
[1721377448306,2.95456,3384.6,3383.9,2.95515]
[1721377448598,2.95506,3384.1,3383.6,3.0]
[1721377448827,2.95483,3384.3,3383.5,3.0]
[1721377448975,2.95473,3384.4,3383.7,2.95533]
[1721377449328,3.0,3385.4,3383.7,2.95533]
[1721377449329,2.2767,3385.5,3383.7,1.773]
[1721377449606,2.2767,3385.5,3384.3,2.95475]
[1721377449607,2.95405,3385.2,3384.3,2.95475]
[1721377449761,2.95404,3385.2,3384.6,2.95454]
[1721377449959,5.23048,3385.5,3384.4,2.95468]
[1721377449960,2.95412,3385.1,3384.4,2.95468]
[1721377450408,2.95429,3384.9,3384.2,10.35483]
[1721377450610,2.95473,3384.4,3384.2,7.4]
[1721377450813,2.95473,3384.4,3383.9,3.0]
[1721377451116,2.95473,3384.4,3383.5,7.4]
[1721377451117,2.95485,3384.3,3383.6,2.95541]
[1721377451323,2.95485,3384.3,3383.7,3.55]
[1721377451519,2.95508,3384.0,3383.7,3.0]
[1721377451823,2.95517,3383.9,3383.5,7.4]
[1721377452020,2.95517,3383.9,3382.5,2.4244]
[1721377452021,2.3932,3384.3,3383.0,7.4]
[1721377452326,2.9551,3384.0,3383.0,10.35595]
[1721377452631,2.95517,3383.9,3383.3,2.9556]
[1721377453016,2.95517,3383.9,3383.0,7.4]
[1721377453195,2.95542,3383.7,3383.0,10.35593]
[1721377453592,2.95544,3383.6,3383.0,7.4]
[1721377453792,2.95569,3383.3,3383.0,7.4]
[1721377454200,2.95544,3383.6,3383.0,7.4]
[1721377454407,2.95584,3383.2,3383.0,7.4]
[1721377454606,2.95584,3383.2,3382.5,2.95632]
[1721377454926,2.3932,3384.3,3382.7,5.44621]
[1721377455108,2.95549,3383.6,3382.8,2.95606]
[1721377455306,2.9554,3383.7,3382.7,5.44621]
[1721377455525,2.95548,3383.6,3382.7,5.991331]
[1721377455698,2.95545,3383.6,3382.7,2.95621]
[1721377455892,2.95567,3383.4,3382.8,0.55]
[1721377456106,2.95526,3383.8,3382.8,3.50611]
[1721377456432,5.34805,3384.3,3383.5,2.95549]
[1721377456433,2.95501,3384.1,3383.5,2.95549]
[1721377456731,2.95484,3384.3,3383.6,2.95543]
[1721377456732,2.95493,3384.2,3383.6,2.95543]
[1721377456894,2.955,3384.1,3383.4,2.95559]
[1721377457103,2.955,3384.1,3383.5,3.50551]
[1721377457893,2.95491,3384.2,3383.5,0.55]
[1721377458131,2.95491,3384.2,3383.3,6.50569]
[1721377458511,2.95499,3384.1,3383.5,2.95545]
[1721377459321,2.95499,3384.1,3383.3,6.50569]
[1721377459525,2.95508,3384.0,3383.3,6.50569]
[1721377460134,2.95451,3384.7,3383.3,3.0]
[1721377460135,2.95517,3383.9,3383.3,3.0]
[1721377460297,2.95517,3383.9,3383.1,10.35584]
[1721377460503,2.95517,3383.9,3383.2,0.55]
[1721377460916,2.95531,3383.8,3383.2,0.55]
[1721377461433,2.95501,3384.1,3383.5,2.9555]
[1721377461737,2.95483,3384.3,3383.3,2.95562]
[1721377461936,2.95508,3384.0,3383.4,0.55]
[1721377462138,2.95495,3384.2,3383.4,3.50559]
[1721377462340,2.95495,3384.2,3383.5,2.95551]
[1721377462524,2.95483,3384.3,3383.5,2.95551]
[1721377462525,2.955,3384.1,3383.5,2.95551]
[1721377463700,2.95509,3384.0,3383.4,0.55]
[1721377464497,2.95491,3384.2,3383.4,1.936153]
[1721377464706,2.95476,3384.4,3383.6,2.95542]
[1721377465019,2.95476,3384.4,3383.7,2.95533]
[1721377465213,2.95482,3384.3,3383.7,2.95533]
[1721377465828,2.95491,3384.2,3383.5,2.95551]
[1721377466051,2.95491,3384.2,3383.6,0.55]
[1721377466358,2.95491,3384.2,3383.6,3.50542]
[1721377466818,2.95474,3384.4,3383.7,2.95532]
[1721377467137,2.95482,3384.3,3383.6,3.50542]
[1721377467554,5.90934,3384.5,3383.7,2.95533]
[1721377467763,2.95474,3384.4,3383.7,2.95533]
[1721377467926,2.95464,3384.5,3383.8,2.95525]
[1721377468429,2.95464,3384.5,3383.9,0.55]
[1721377469033,2.95456,3384.6,3383.9,3.50516]
[1721377469240,2.95441,3384.8,3383.9,3.50516]
[1721377469467,2.95431,3384.9,3383.9,0.55]
[1721377469677,2.95431,3384.9,3384.1,2.95491]
[1721377469884,2.9541,3385.2,3384.2,0.55]
[1721377470171,2.95401,3385.3,3384.6,2.95449]
[1721377470968,2.95401,3385.3,3384.7,2.95445]
[1721377471325,2.95401,3385.3,3384.5,2.95459]
[1721377471570,2.95405,3385.2,3384.6,0.55]
[1721377472366,2.95405,3385.2,3384.6,3.50454]
[1721377472771,2.9538,3385.5,3384.7,2.95446]
[1721377472772,2.95392,3385.4,3384.7,2.95446]
[1721377473071,2.299,3386.0,3384.8,2.95437]
[1721377473072,2.95374,3385.6,3384.8,2.95437]
[1721377473240,2.95363,3385.7,3384.8,3.50437]
[1721377473241,2.95379,3385.5,3384.8,3.50437]
[1721377473446,2.95369,3385.6,3384.8,0.55]
[1721377473644,2.95395,3385.3,3384.8,0.55]
[1721377473942,2.95384,3385.5,3384.8,3.50437]
[1721377474143,2.95384,3385.5,3384.8,4.150253]
[1721377474338,2.95384,3385.5,3384.9,2.95429]
[1721377474552,2.95366,3385.7,3385.0,2.95419]
[1721377474759,2.95366,3385.7,3385.0,3.50419]
[1721377475065,2.95336,3386.0,3385.1,2.95411]
[1721377475066,2.95349,3385.9,3385.1,2.95411]
[1721377475271,2.95349,3385.9,3385.2,3.50402]
[1721377475478,2.95319,3386.2,3385.4,2.95385]
[1721377475631,2.95319,3386.2,3385.5,0.55]
[1721377476029,2.95326,3386.1,3385.5,0.55]
[1721377476255,2.9534,3386.0,3385.3,0.55]
[1721377476470,2.95347,3385.9,3385.3,0.55]
[1721377476676,2.9534,3386.0,3385.3,0.55]
[1721377477249,2.9534,3386.0,3385.3,3.55]
[1721377477571,2.95316,3386.2,3385.3,3.55]
[1721377477773,2.95332,3386.1,3385.4,1.14473383]
[1721377477981,2.95332,3386.1,3385.5,0.55]
[1721377478191,2.95342,3385.9,3385.5,0.55]
[1721377478472,2.95342,3385.9,3385.4,0.55]
[1721377478872,2.95294,3386.5,3385.4,0.55]
[1721377478873,2.95377,3385.5,3385.4,0.55]
[1721377479262,2.95349,3385.9,3385.3,3.0]
[1721377479449,2.95309,3386.3,3385.5,2.4698]
[1721377479656,2.9533,3386.1,3385.6,0.55]
[1721377479839,2.9532,3386.2,3385.6,0.55]
[1721377480033,2.95255,3386.9,3385.6,0.55]
[1721377480034,2.95304,3386.4,3385.6,3.55]
[1721377480275,2.95304,3386.4,3385.7,0.84648228]
[1721377480445,2.95304,3386.4,3385.8,0.60906142]
[1721377480646,2.95326,3386.1,3385.8,0.55]
[1721377480851,2.95334,3386.0,3385.8,0.55]
[1721377481476,2.95268,3386.8,3385.9,2.2528]
[1721377481675,2.95264,3386.8,3386.0,6.54285523]
[1721377481883,2.95251,3387.0,3386.1,3.0]
[1721377482048,2.95251,3387.0,3386.0,1.81653523]
[1721377482049,2.9526,3386.9,3386.0,0.55]
[1721377482249,2.9534,3386.0,3385.8,0.55]
[1721377482488,2.9534,3386.0,3385.8,0.355]
[1721377482639,2.95359,3385.7,3385.6,0.55]
[1721377483244,2.95308,3386.3,3385.5,3.0]
[1721377483436,2.95308,3386.3,3384.4,0.43297109]
[1721377483437,3.427,3386.4,3384.9,2.4835]
[1721377483670,2.95397,3385.3,3384.9,4.2565]
[1721377483895,2.95378,3385.5,3384.9,4.2565]
[1721377484053,2.95362,3385.7,3384.9,4.2565]
[1721377484054,2.95386,3385.4,3385.0,0.721097]
[1721377484883,2.95386,3385.4,3385.0,3.721097]
[1721377485061,2.95386,3385.4,3385.1,0.55]
[1721377486412,2.95351,3385.8,3385.1,2.323]
[1721377486584,2.95351,3385.8,3385.1,5.323]
[1721377486883,2.95351,3385.8,3385.2,3.5320797]
[1721377487045,2.95351,3385.8,3385.3,3.55]
[1721377487477,2.95229,3387.2,3385.3,8.432]
[1721377487478,2.95316,3386.2,3385.3,8.432]
[1721377487680,2.95302,3386.4,3385.5,4.882]
[1721377487987,2.4066,3387.4,3386.4,4.882]
[1721377487988,2.95235,3387.2,3386.4,4.882]
[1721377488161,2.95235,3387.2,3386.6,1.773]
[1721377488358,2.12676132,3388.9,3386.9,4.1019]
[1721377488359,1.82293827,3388.1,3386.9,4.1019]
[1721377488658,2.95125,3388.4,3387.0,3.55]
[1721377488889,1.51911522,3388.5,3387.0,3.55]
[1721377488890,2.95167,3388.0,3387.0,3.55]
[1721377489096,2.95133,3388.3,3387.0,3.55]
[1721377489097,2.95209,3387.5,3387.0,3.55]
[1721377489300,2.95185,3387.7,3387.1,0.76519]
[1721377489301,2.95211,3387.4,3387.1,0.76519]
[1721377489470,2.95185,3387.7,3387.1,0.76519]
[1721377489471,2.95185,3387.7,3387.2,0.55]
[1721377489659,2.95185,3387.7,3387.2,3.55]
[1721377489860,2.95111,3388.6,3386.9,2.3289]
[1721377489861,5.90492,3387.0,3386.9,2.3289]
[1721377490074,2.95246,3387.0,3386.9,0.55]
[1721377490278,2.95177,3387.8,3386.4,3.0]
[1721377490509,2.95302,3386.4,3385.7,2.3748]
[1721377490862,2.95302,3386.4,3385.8,1.773]
[1721377491067,2.95281,3386.6,3385.8,4.882]
[1721377491267,2.95295,3386.5,3385.8,4.882]
[1721377491880,2.953,3386.4,3386.0,1.773]
[1721377492077,2.95307,3386.3,3386.1,0.7882]
[1721377492909,2.95333,3386.0,3385.9,3.0]
[1721377493095,2.95316,3386.2,3385.8,4.773]
[1721377493269,2.95283,3386.6,3385.8,7.882]
[1721377493668,2.9529,3386.5,3385.8,7.882]
[1721377494169,2.9529,3386.5,3386.0,1.773]
[1721377494404,2.9529,3386.5,3386.1,3.1662]
[1721377494601,2.9529,3386.5,3386.2,0.55]
[1721377494807,2.95282,3386.6,3386.2,5.323]
[1721377495004,2.95282,3386.6,3386.3,3.0]
[1721377495310,2.95233,3387.2,3386.4,0.55]
[1721377495311,2.9529,3386.5,3386.4,0.55]
[1721377495518,2.9529,3386.5,3386.4,1.22162]
[1721377497481,2.95275,3386.7,3386.5,1.773]
[1721377497712,2.95275,3386.7,3386.6,0.55]
[1721377498283,5.9055,3386.7,3386.6,0.55]
[1721377498489,2.95281,3386.6,3386.4,0.55]
[1721377498788,3.427,3386.6,3385.7,2.3748]
[1721377499120,2.95351,3385.8,3385.7,2.3748]
[1721377499324,2.95351,3385.8,3385.1,2.2901]
[1721377499325,2.95397,3385.3,3385.1,2.2901]
[1721377499497,2.95438,3384.8,3384.7,1.773]
[1721377499824,3.427,3385.0,3383.9,2.4699]
[1721377499978,2.955,3384.1,3383.9,2.4699]
[1721377500184,2.9552,3383.9,3383.0,2.4699]
[1721377500418,2.95463,3384.6,3383.0,2.4699]
[1721377500419,2.95495,3384.2,3383.1,4.884]
[1721377500621,2.95508,3384.0,3383.3,1.775]
[1721377500920,2.95497,3384.2,3383.3,4.884]
[1721377501134,2.95488,3384.3,3383.5,4.884]
[1721377501448,2.95499,3384.1,3383.5,4.884]
[1721377501620,2.95478,3384.4,3383.5,4.884]
[1721377501784,2.95483,3384.3,3383.7,4.884]
[1721377502098,2.95483,3384.3,3383.9,1.775]
[1721377502486,2.95515,3384.0,3383.8,3.0]
[1721377502683,2.95485,3384.3,3383.7,1.775]
[1721377502912,2.95525,3383.8,3383.7,1.775]
[1721377503084,2.95525,3383.8,3383.7,5.001931]
[1721377503284,2.95525,3383.8,3383.7,2.001931]
[1721377504132,2.95525,3383.8,3383.7,2.551931]
[1721377504286,2.95525,3383.8,3383.7,5.551931]
[1721377505495,2.95525,3383.8,3382.9,2.95602]
[1721377505496,5.91156,3383.2,3383.1,7.4]
[1721377505724,2.95595,3383.0,3382.5,7.4]
[1721377506540,2.95595,3383.0,3382.5,10.515]
[1721377506733,2.95578,3383.2,3382.6,1.573145]
[1721377506936,2.95561,3383.4,3382.7,3.115]
[1721377507095,2.95552,3383.5,3382.8,6.115]
[1721377507435,2.9559,3383.1,3382.6,7.688145]
[1721377508043,2.9559,3383.1,3382.7,0.55]
[1721377508205,2.9559,3383.1,3382.7,2.3398045]
[1721377508406,2.9559,3383.1,3382.7,5.3398045]
[1721377508604,2.95569,3383.3,3382.8,3.115]
[1721377508802,2.95569,3383.3,3382.9,6.665]
[1721377509000,2.95569,3383.3,3383.0,3.0]
[1721377509243,2.95578,3383.2,3383.1,1.1615]
[1721377510707,2.95541,3383.7,3383.1,4.33560954]
[1721377510904,2.95543,3383.6,3383.3,2.4634]
[1721377511112,2.95551,3383.5,3383.4,0.55]
[1721377511505,2.95551,3383.5,3383.4,3.55]
[1721377512162,2.95551,3383.5,3383.4,0.55]
[1721377512310,2.95563,3383.4,3383.2,0.55]
[1721377512519,2.95569,3383.3,3383.2,0.55]
[1721377512784,2.95623,3382.7,3382.5,7.4]
[1721377513404,2.95604,3382.9,3382.5,7.4]
[1721377513600,2.95566,3383.4,3382.6,0.7405]
[1721377513846,2.9563,3382.6,3382.5,7.4]
[1721377514552,2.95609,3382.9,3382.5,7.4]
[1721377514758,2.95597,3383.0,3382.5,7.4]
[1721377515047,2.95597,3383.0,3382.6,3.0]
[1721377515420,2.95542,3383.7,3382.6,3.0]
[1721377515421,2.95621,3382.7,3382.6,3.0]
[1721377515630,5.91242,3382.7,3382.6,3.0]
[1721377515833,5.91242,3382.7,3382.0,2.43937411]
[1721377515834,5.91278,3382.5,3382.0,7.40177411]
[1721377516137,5.91278,3382.5,3382.0,0.00177411]
[1721377516138,8.86917,3382.5,3382.0,0.00177411]
[1721377516752,5.91278,3382.5,3382.0,0.00177411]
[1721377519238,2.95639,3382.5,3382.0,0.00177411]
[1721377519440,2.95606,3382.9,3382.0,2.95853411]
[1721377519738,2.95606,3382.9,3382.1,0.55]
[1721377519951,2.95606,3382.9,3382.1,3.55]
[1721377520190,2.4506,3383.4,3382.1,3.55]
[1721377520354,2.4506,3383.4,3382.1,7.95]
[1721377520355,2.95629,3382.7,3382.1,7.95]
[1721377520700,2.95629,3382.7,3382.2,3.0]
[1721377520839,2.95629,3382.7,3382.3,0.55]
[1721377521654,2.95632,3382.6,3382.3,0.55]
[1721377521841,2.4506,3383.4,3382.3,0.55]
[1721377521842,2.95639,3382.5,3382.3,0.55]
[1721377522042,5.91278,3382.5,3382.1,7.4]
[1721377523465,8.37418,3382.5,3382.1,7.4]
[1721377523676,11.33057,3382.5,3382.1,7.4]
[1721377523868,11.33057,3382.5,3382.0,0.00177411]
[1721377524968,8.37418,3382.5,3382.0,0.00177411]
[1721377526148,2.95639,3382.5,3382.0,0.00177411]
[1721377526348,5.91278,3382.5,3382.0,0.00177411]
[1721377526594,2.95639,3382.5,3382.0,0.00177411]
[1721377526796,5.91278,3382.5,3382.0,0.00177411]
[1721377527676,2.95639,3382.5,3382.0,0.00177411]
[1721377527882,2.95631,3382.6,3382.0,0.00177411]
[1721377528153,2.95639,3382.5,3382.0,0.00177411]
[1721377528704,2.95631,3382.6,3382.0,0.00177411]
[1721377528851,6.38284,3383.2,3382.3,2.95649]
[1721377529052,3.427,3384.0,3382.8,2.95612]
[1721377529259,2.9554,3383.7,3382.9,3.56515457]
[1721377529572,2.95528,3383.8,3383.0,3.0]
[1721377529775,2.95528,3383.8,3382.9,0.55]
[1721377529776,2.95528,3383.8,3383.1,0.55]
[1721377530083,2.95539,3383.7,3383.1,2.95586]
[1721377530287,6.3821,3384.0,3383.1,2.95586]
[1721377530288,2.95523,3383.9,3383.2,0.55]
[1721377530467,2.95493,3384.2,3383.4,2.95559]
[1721377530797,2.95474,3384.4,3383.6,1.775]
[1721377530953,2.95474,3384.4,3383.7,4.033389]
[1721377531161,3.427,3384.9,3383.8,3.01433643]
[1721377531162,2.95445,3384.8,3383.8,3.01433643]
[1721377531456,2.95462,3384.6,3383.9,0.55]
[1721377531688,2.95462,3384.6,3383.9,0.05909645]
[1721377531927,2.95462,3384.6,3383.7,4.078059]
[1721377531928,2.95462,3384.6,3384.0,0.55]
[1721377532135,2.95464,3384.5,3383.9,0.55]
[1721377532439,2.95464,3384.5,3382.9,5.3784]
[1721377532440,2.955,3384.1,3382.9,5.3784]
[1721377532595,3.427,3384.5,3382.9,5.3784]
[1721377532596,2.95532,3383.8,3383.2,3.55]
[1721377532789,2.95513,3384.0,3383.2,3.55]
[1721377532990,2.95493,3384.2,3383.2,6.50575]
[1721377533215,2.95499,3384.1,3383.4,2.95552]
[1721377533493,2.95499,3384.1,3383.5,0.55]
[1721377533804,2.95516,3384.0,3383.5,0.55]
[1721377534009,2.95516,3384.0,3383.4,0.55]
[1721377534385,2.9549,3384.2,3383.4,6.848672]
[1721377534597,2.9549,3384.2,3383.5,2.95546]
[1721377534894,2.95493,3384.2,3383.6,0.55]
[1721377535088,2.95493,3384.2,3383.4,6.848612]
[1721377535089,2.95457,3384.6,3383.7,4.73034]
[1721377535362,3.427,3385.3,3383.9,4.73015]
[1721377535489,2.95421,3385.0,3384.2,4.7299]
[1721377535685,2.95421,3385.0,3384.3,0.55]
[1721377535886,2.95447,3384.7,3384.3,3.55]
[1721377536118,2.95447,3384.7,3384.3,0.55]
[1721377536314,2.95456,3384.6,3384.4,0.2325]
[1721377536514,2.9547,3384.5,3384.3,0.55]
[1721377536916,2.95451,3384.7,3384.0,2.325]
[1721377537227,2.95451,3384.7,3384.0,5.28006]
[1721377537427,2.95451,3384.7,3384.1,3.0]
[1721377537631,2.95451,3384.7,3384.2,0.55]
[1721377537790,2.9544,3384.8,3384.2,1.0825]
[1721377537996,3.427,3385.3,3384.2,1.0825]
[1721377537997,2.95414,3385.1,3384.2,0.55]
[1721377538196,2.95506,3384.1,3383.9,3.0]
[1721377538392,2.95506,3384.1,3383.7,3.0]
[1721377538620,2.95448,3384.7,3383.4,1.568072]
[1721377538621,2.95509,3384.0,3383.4,1.568072]
[1721377538829,2.95525,3383.8,3383.4,1.568072]
[1721377539217,2.95569,3383.3,3383.2,7.4]
[1721377539518,2.95569,3383.3,3382.8,1.775]
[1721377539841,2.95554,3383.5,3382.8,1.775]
[1721377540202,2.95536,3383.7,3382.8,1.775]
[1721377540203,2.95561,3383.4,3382.8,1.775]